Cogmind - Beta 13 X1 @@@ ROGUE MODE // 2023.08.02 @ 22:23:29 Player: Schmee Result: Destroyed by YW-8UN(R) with Subdweller Laser Performance ------------- Evolutions (0) 0 Regions Visited (2) 400 Robots Destroyed (18) 90 Value Destroyed (439) 439 Prototype IDs (0) 0 Alien Tech Used (0) 0 Bonus (0) 0 TOTAL SCORE: 929 Bonus ------- None Cogmind --------- Core Integrity 0/250 Matter 166/300 Energy 240/250 System Corruption 1% Temperature Cool (6) Movement Walking (190) Ox1 Location -10/Subcaves Parts ------- > --- POWER (1) -------- Ion Engine > --- PROPULSION (2) --- Aluminum Leg Aluminum Leg > --- UTILITY (2) ------ Small Storage Unit Signal Interpreter > --- WEAPON (2) ------- Grenade Launcher > --- INVENTORY (8) ---- Ion Engine Aluminum Leg Subdweller Laser Subdweller Beam Cannon Battle Rifle Peak State ------------ > --- POWER ------------ Ion Engine > --- PROPULSION ------- Aluminum Leg Aluminum Leg > --- UTILITY ---------- Small Storage Unit Improved Terrain Scanner > --- WEAPON ----------- Particle Gun Beam Cannon > --- INVENTORY -------- Light Ion Engine Light Treads Light Treads Aluminum Leg Compact Wheel Signal Interpreter [Rating: 10] Favorites ----------- Power Ion Engine Engine Ion Engine Propulsion Aluminum Leg Treads Light Treads Leg Aluminum Leg Utility Small Storage Unit Device Improved Terrain Scanner Storage Small Storage Unit Processor Signal Interpreter Weapon Light Cannon Energy Gun Particle Gun Energy Cannon Beam Cannon Ballistic Gun Assault Rifle Ballistic Cannon Light Cannon Launcher Grenade Launcher Build | -11 -10 -10 ------- Run | Jun Mat Sub Slots Evolved . | . . . Power . | . . . Propulsion . | . . . Utility . | . . . Weapon . | . . . Parts Attached 20 | 2 10 8 Power 2 | . 2 . Engine 2 | . 2 . Core . | . . . Reactor . | . . . Propulsion 7 | . 3 4 Treads 2 | . . 2 Leg 5 | . 3 2 Wheel . | . . . Hover . | . . . Flight . | . . . Utility 5 | 2 1 2 Device 3 | 2 1 . Storage 1 | . . 1 Processor 1 | . . 1 Hackware . | . . . Protection . | . . . Artifact . | . . . Weapon 6 | . 4 2 Energy Gun 1 | . 1 . Energy Cannon 1 | . 1 . Ballistic Gun 1 | . 1 . Ballistic Cannon 2 | . 1 1 Launcher 1 | . . 1 Special Weapon . | . . . Impact Weapon . | . . . Slashing Weapon . | . . . Piercing Weapon . | . . . Special Melee Weapon . | . . . Unidentified Prototypes . | . . . Parts Lost 9 | . 3 6 Power 1 | . 1 . Propulsion 2 | . . 2 Utility 2 | . 1 1 Weapon 4 | . 1 3 Highest Loss Streak 3 | . 2 3 To Critical Strikes . | . . . Average Slot Usage (%) 99 | . 99 98 Engine 14 | . 14 14 Treads 7 | . . 18 Leg 20 | . 28 9 Device 10 | . 13 6 Storage 14 | . 14 14 Processor 2 | . . 6 Energy Gun 5 | . 7 2 Energy Cannon 4 | . 6 . Ballistic Gun 4 | . 6 . Ballistic Cannon 13 | . 6 24 Naked Turns . | . . . Heaviest Build 17 | 11 17 17 Greatest Support 40 | 20 20 40 Greatest Overweight (x) 5 | . . 5 Average Overweight (x) . | . . . Largest Inventory Capacity 8 | 8 8 8 Average Capacity 8 | 8 8 8 Most Carried 8 | 8 8 8 Average Carried 7 | 6 7 7 Final Capacity 8 | 8 8 8 Final Carried 8 | 8 8 5 Class Distribution -------------------- 100% | Mutant Dominant Class ---------------- Mutant | -10/Materials Mutant | -10/Subcaves Resources | -11 -10 -10 ----------- Run | Jun Mat Sub Matter Collected 576 | 224 165 187 Remotely . | . . . Salvage Created 408 | 77 270 61 Parts 36 | 7 19 10 Haulers Intercepted . | . . . Recyclers Shooed . | . . . Parts Field Recycled . | . . . Retrieved Matter . | . . . Parts Self-Destructed 10 | . . 10 Prevented . | . . . Kills | -11 -10 -10 ------- Run | Jun Mat Sub Combat Hostiles Destroyed 15 | . 10 5 Guns 2 | . 2 . Cannons 13 | . 8 5 Classes Destroyed 5 | 2 2 1 Tunneler 2 | 1 1 . Recycler 1 | 1 . . Swarmer 6 | . 6 . Grunt 4 | . 4 . Subdweller 5 | . . 5 Best Kill Streak 3 | 2 3 1 Combat Bots Only 3 | . 3 1 Max Kills in Single Turn 1 | 1 1 1 Gunslinging . | . . . Exploded . | . . . Melee . | . . . Uniques/NPCs Destroyed . | . . . Combat | -11 -10 -10 -------- Run | Jun Mat Sub Damage Taken 1356 | . 396 960 Core 266 | . 47 219 Absorbed by Shields . | . . . Core Remaining (%) 100 | 100 . . Volleys Fired 67 | 4 27 36 Largest 2 | 2 2 2 Hottest 100 | 60 100 100 Shots Fired 126 | 8 49 69 Gun 34 | 8 22 4 Cannon 91 | . 27 64 Launcher 1 | . . 1 Special . | . . . Kinetic 90 | 4 22 64 Thermal 35 | 4 27 4 Explosive 1 | . . 1 Electromagnetic . | . . . Robot Hit Streak 11 | 2 7 11 Robot Miss Streak 3 | 2 3 2 Penetration Max . | . . . Secondary Targets . | . . . Shots Hit Robots 84 | 4 29 51 Core Hits 28 | 4 14 10 Critical Kills . | . . . Critical Parts Destroyed . | . . . Critical Strikes 2 | . 1 1 Blast 2 | . 1 1 Melee Attacks . | . . . Impact . | . . . Slashing . | . . . Piercing . | . . . Sneak Attacks . | . . . Combat Hostiles . | . . . Follow-up Attacks . | . . . Damage Inflicted 1492 | 33 497 962 Guns 261 | 33 164 64 Cannons 1144 | . 333 811 Explosions 87 | . . 87 Melee . | . . . Ramming . | . . . Kinetic 985 | 12 162 811 Thermal 420 | 21 335 64 Explosive 87 | . . 87 Electromagnetic . | . . . Impact . | . . . Slashing . | . . . Piercing . | . . . Highest Corruption 1 | . 1 1 Average Corruption 1 | . 1 1 Corruption Purged . | . . . Corruption Blocked . | . . . Effects 5 | . . 5 Message Errors 1 | . . 1 Matter Fused 1 | . . 1 Heat Flow Errors 3 | . . 3 Overload Shots . | . . . Overflow Damage . | . . . Projectiles . | . . . Explosions . | . . . Melee . | . . . Knockbacks 13 | . 1 12 Impact . | . . . Kinetic 13 | . 1 12 Secondary . | . . . Self-Inflicted Damage 22 | . . 22 Shots 1 | . . 1 Rammed . | . . . Targets Rammed . | . . . Kicked . | . . . Crushed . | . . . Highest Temperature 259 | 40 178 259 Average Temperature 70 | 22 69 92 Received Heat Transfer 575 | . 138 437 Siege Activations . | . . . Robots Corrupted . | . . . Combat Hostiles . | . . . Parts Fried . | . . . Impact Corruptions . | . . . Robots Melted . | . . . Combat Hostiles . | . . . Parts Melted 1 | . 1 . Heat Transferred 938 | 50 740 148 Parts Sabotaged . | . . . Parts Stolen . | . . . Parts Stripped . | . . . Power Chain Reactions . | . . . Missiles Intercepted . | . . . Alert | -11 -10 -10 ------- Run | Jun Mat Sub Peak Influence 170 | 10 170 . Initial 6 | . 6 . Average 61 | 6 63 . Maximum Alert Level . | . . . Low Security (%) 100 | 100 100 . Level 1 . | . . . Level 2 . | . . . Level 3 . | . . . Level 4 . | . . . Level 5 . | . . . High Security . | . . . Max Security . | . . . Squads Dispatched 1 | . 1 . Investigation . | . . . Extermination . | . . . Reinforcement 1 | . 1 . Assault . | . . . Garrison . | . . . Intercept . | . . . Searches Triggered . | . . . Construction Impeded . | . . . Haulers Reinforced . | . . . Active Scanning Responses . | . . . Cargo Convoy Interrupts . | . . . Stealth | -11 -10 -10 --------- Run | Jun Mat Sub Distress Signals 3 | . 3 . Communications Jammed . | . . . Distress Signals . | . . . Times Spotted 29 | . 21 8 Peak Tracking Total 5 | . 5 2 Tactical Retreats 3 | . 2 1 Traps | -11 -10 -10 ------- Run | Jun Mat Sub Traps Triggered 2 | . 2 . Indirectly . | . . . Trap Hack Attempts . | . . . Triggered . | . . . Disarmed . | . . . Reprogrammed . | . . . Reused . | . . . Traps Extracted . | . . . Installed . | . . . Triggered . | . . . Machines | -11 -10 -10 ---------- Run | Jun Mat Sub Machines Disabled 1 | . 1 . Max in Single Turn 1 | . 1 . Machines Repaired . | . . . Machines Sabotaged . | . . . Overloaded Fab Kills . | . . . Hacking | -11 -10 -10 --------- Run | Jun Mat Sub Machines Accessed 2 | . 2 . Terminals 2 | . 2 . Fabricators . | . . . Repair Stations . | . . . Recycling Units . | . . . Scanalyzers . | . . . Garrison Access . | . . . Total Hacks 2 | . 2 . Successful 1 | . 1 . Failed 1 | . 1 . Catastrophic . | . . . Database Lockouts . | . . . Manual 2 | . 2 . Terminals 2 | . 2 . Fabricators . | . . . Repair Stations . | . . . Recycling Units . | . . . Scanalyzers . | . . . Garrison Access . | . . . Terminal Hacks 1 | . 1 . Branch Access Points 1 | . 1 . Fabricator Hacks . | . . . Repair Station Hacks . | . . . Recycling Unit Hacks . | . . . Scanalyzer . | . . . Garrison Access Hacks . | . . . Unauthorized Hacks . | . . . Terminals . | . . . Fabricators . | . . . Repair Stations . | . . . Recycling Units . | . . . Scanalyzers . | . . . Garrison Access . | . . . Data Cores Recovered . | . . . Used . | . . . Hacking Detections 1 | . 1 . Full Trace Events . | . . . Feedback Events . | . . . Feedback Blocked . | . . . Robot Schematics Acquired . | . . . Robots Built . | . . . Authchips . | . . . Time . | . . . Total Robot Build Rating . | . . . Part Schematics Acquired . | . . . Parts Built . | . . . Authchips . | . . . Time . | . . . Total Part Build Rating . | . . . Parts Repaired . | . . . Time . | . . . Parts Recycled . | . . . Recycled Matter . | . . . Retrieved Matter . | . . . Retrieved Components . | . . . Parts Scanalyzed . | . . . Part Schematics Acquired . | . . . Parts Damaged . | . . . Bothacking | -11 -10 -10 ------------ Run | Jun Mat Sub Used RIF Installer . | . . . Robots Hacked . | . . . Non-combat . | . . . Combat . | . . . Robot Hacks Applied . | . . . Relay Couplers Released . | . . . Fabnet Peak Effective % . | . . . Robots Rewired . | . . . Allies Hacked . | . . . Hacks Repelled . | . . . Allies | -11 -10 -10 -------- Run | Jun Mat Sub Total Allies . | . . . Largest Group . | . . . Highest-Rated Group . | . . . Highest-Rated Ally . | . . . Total Orders . | . . . Ally Attacks . | . . . Total Damage . | . . . Kills . | . . . Allies Corrupted . | . . . Allies Melted . | . . . Intel | -11 -10 -10 ------- Run | Jun Mat Sub Robot Analysis Total . | . . . Derelict Logs Recovered 1 | . . 1 Drone Launches . | . . . Drone Recoveries . | . . . Exploration | -11 -10 -10 ------------- Run | Jun Mat Sub Turns Passed 1821 | 41 1055 725 Spaces Moved 1115 | 21 716 378 Core 1 | . . 1 Treads 236 | . . 236 Legs 878 | 21 716 141 Wheels . | . . . Hover . | . . . Flight . | . . . Fastest Speed 120 | 120 120 120 Average Speed 128 | 120 120 145 Slowest Speed 300 | 120 120 300 Overloaded Moves . | . . . Propulsion Burnouts . | . . . Robots Hopped . | . . . Cave-ins Triggered . | . . . Exploration Rate (%) 37 | 3 87 22 Regions Visited 2 Branch Regions 1 Pre-discovered Areas . | . . . Known Exits Taken . | . . . Unknown Exits Taken 2 | 1 1 . Scrap Searched 1 | . . 1 Spaces Dug . | . . . Terrain Destroyed 9 | . . 9 Melee . | . . . Projectile . | . . . AOE 9 | . . 9 Terrain Rammed . | . . . Walls Destroyed . | . . . Machines Disabled . | . . . Actions | -11 -10 -10 --------- Run | Jun Mat Sub Total 1382 | 28 865 489 Wait 148 | . 100 48 Move 1113 | 20 715 378 Hop . | . . . Pick Up 15 | 2 5 8 Fast Attach 5 | 1 2 2 Attach 9 | . 3 6 Detach 3 | . . 3 Swap 6 | 1 5 . Drop 16 | . 8 8 Fire 67 | 4 27 36 Melee . | . . . Ram . | . . . Kick . | . . . Crush . | . . . Escape Stasis . | . . . Rewire . | . . . Trap . | . . . Miscellaneous . | . . . Route ------- -11/Junkyard -10/Materials (discovered 6 exits: [*Mat x3] / *Min x2 / [*Sub]) -10/Subcaves (discovered 2 exits: *Mat x2) History --------- Turn | Location | Event 1 | -11/Junkyard | Discovered new exit (range 3) 42 | -11/Junkyard | Entered Materials 233 | -10/Materials | Discovered new exit (range 4) 284 | -10/Materials | Discovered new exit (range 10) 309 | -10/Materials | Build established: Mutant 331 | -10/Materials | Identified exit to Mines 685 | -10/Materials | Discovered new exit (range 16) 850 | -10/Materials | Discovered new exit (range 6) 1097 | -10/Materials | Entered Subcaves 1119 | -10/Subcaves | Learned Materials terminal intel 1421 | -10/Subcaves | Ambushed by Subdwellers from Twisted Machinery 1479 | -10/Subcaves | Discovered new exit (range 7) 1486 | -10/Subcaves | Shifting Twisted Machinery released Sub. Monowheel 1487 | -10/Subcaves | Shifting Twisted Machinery released Sub. Laser 1494 | -10/Subcaves | Identified exit to Materials 1659 | -10/Subcaves | Discovered exit to Materials (range 15) 1713 | -10/Subcaves | Core integrity fell below 50% 1821 | -10/Subcaves | Core integrity fell below 20% 1822 | -10/Subcaves | Destroyed by YW-8UN(R) with Subdweller Laser Last Messages --------------- 01726_ WS-BNK(R) knocked back. 01732_ WS-BNK(R) affixes Scrap Shield Fragment to Scrap Shield. 01742_ WS-BNK(R) destroyed. 01748_ Acquired 2 matter. 01750_ Acquired 12 matter. 01753_ Acquired 5 matter. 01755_ Acquired 2 matter. 01756_ Acquired 5 matter. 01758_ Acquired 2 matter. 01760_ Acquired 6 matter. 01763_ Acquired 56 matter. 01777_ Dropped Sub. Beam Cannon. 01778_ Acquired Battle Rifle. 01782_ Lgt. Treads destroyed. 01803_ M9-D0I(R) knocked back. 01812_ YW-8UN(R) knocked back. 01814_ Lgt. Cannon destroyed. 01815_ YW-8UN(R) knocked back. 01818_ Lgt. Treads destroyed. 01820_ Lgt. Cannon destroyed. Map ----- +----------------------------------------------------+ | ??????????????????????????????????????????? | | ??????????????????????????????????????????? | | ??????????????????????????????????????????? | | ??????????????????????????????????????????? | | ??????????????????????????????????????????? | | ??????????????????????????????????????????? | | ??????????????????????????????????????????? | | ?????????????????##????? ?????????????????? | | ????????????????## #???? ? ???????????????? | | ????????????????# ???? ??????????????? | | ???????????????? ??? ???????????????? | | ???????????????## ??? ???????????????? | | ???????????????# ??? ????????????????? | | ???????????????# ##? #????????????????? | | ???????????????# ## ##???????????????? | | ???????????????# #???????????????? | | ???????????????# ????????????????? | | ???????????????# ?????????????????? | | ???????????????# ??????????????????? | | ????????????????? #???????????????????? | | ??????????????????#!*=#???????????????????? | | ??????????????????# = ##??????????????????? | | ?????????????????##& =#??????????????????? | | ????????????????## ! [#??????????????????? | | ???????????????## ####??????????????????? | | ???????????????# @##?????????????????????? | | ??????????????# R ##???##??????????????? | | ??????????????## % ### #### ?????????? | | ??????????????# ]R< [ ????????? | | ??????????????## | ????????? | | ???????????????# # # ?????????? | | ???????????????# #?????????????? | | ???????????????## ##### #?????????????? | | ???????????????# #????####?????????????? | | ???????????????# ####??????????????????? | | ???????????????# #??????????????????? | | ??????????????## ##??????????????????? | | ??????????????# ###???????????????????? | | ??????????????## ##?????????????????????? | | ??????????????## ##??????????????????????? | | ??????????????# ##??????????????????????? | | ??????????????# ##?????????????????????? | | ??????????????# #?????????????????????? | | ??????????????# ##????????????????????? | | ??????????????# ##???????????????????? | | ??????????????## ##??????????????????? | | ???????????????##### #??????????????????? | | ???????????????????# #??????????????????? | | ??????????????????### ###??####??????????? | | ??????????????????# ## #### ##????##???? | +----------------------------------------------------+ Best States ------------- Heat Dissipation 25 Energy Generation 10 Energy Capacity 250 Matter Stores 300 Matter Capacity 300 Sight Range 16 Terrain Scan Range 16 Terrain Scan Density 10 Evasion (%) 55 Recoil Reduction 2 Item Schematics ----------------- None Robot Schematics ------------------ None Fabricated ------------ Nothing Alien Tech Used ----------------- None Achievements -------------- None Challenges ------------ None Game ------ Seed ParticleWaveInterpreter Manual? 0 Play Time 00:19:44 Cumulative 50.2 hours Start 2023.08.02 @ 20:17:08 End 2023.08.02 @ 22:23:29 Sessions 3 Manual Loads 0 Difficulty Rogue Special Mode None Game No. 34 Rogue 34 Adventurer 0 Explorer 0 Win Type - Total 1 Types 1/0/0/0/0/0/0/0/0 Lore% 26 Gallery% 46 Achievement% 33 Wizard Run 0 Options --------- ASCII 0 Keyboard 1 Movement Numpad Keybinds 0 Fullscreen 1 Font 24/Smallcaps Map View 76x50 Tactical HUD 1 Map Filters NONE Filters NONE Steam 1 RUN: a7a8f0aa-9cb2-4632-8551-1582c349ae6f